bitfinex-derivatives/quotes_BTCF0:USTF0_20240907
["timestamp","ask_amount","ask_price","bid_price","bid_amount"]
[1725682019549,0.29075459,53879.0,53878.0,0.0296819]
[1725682019550,0.38357759,53879.0,53878.0,0.0296819]
[1725682020460,0.38357759,53879.0,53878.0,0.26367733]
[1725682020651,0.38357759,53879.0,53878.0,0.35650233]
[1725682021452,0.38357759,53879.0,53878.0,0.26392834]
[1725682021858,0.38357759,53879.0,53878.0,0.3565951]
[1725682022257,0.38357759,53879.0,53878.0,0.21517366]
[1725682022661,0.44951417,53879.0,53878.0,0.1225069]
[1725682023054,0.49551417,53879.0,53878.0,0.1225069]
[1725682025465,0.49551417,53879.0,53878.0,0.0296819]
[1725682027861,0.45966655,53879.0,53878.0,0.0296819]
[1725682030760,0.42957759,53879.0,53878.0,0.0296819]
[1725682035179,0.42957759,53879.0,53878.0,0.1225069]
[1725682035180,0.45778669,53879.0,53878.0,0.1225069]
[1725682035369,0.38357759,53879.0,53878.0,0.1225069]
[1725682038072,0.38357759,53879.0,53878.0,0.1296819]
[1725682038569,0.38357759,53879.0,53878.0,0.0296819]
[1725682041368,0.45740314,53879.0,53878.0,0.0296819]
[1725682042273,0.45740314,53879.0,53878.0,0.1225069]
[1725682043282,0.38357759,53879.0,53878.0,0.1225069]
[1725682044771,0.38357759,53879.0,53878.0,0.21517366]
[1725682045689,0.38357759,53879.0,53878.0,0.1225069]
[1725682045690,0.41366583,53879.0,53878.0,0.1225069]
[1725682046783,0.4495126,53879.0,53878.0,0.0296819]
[1725682047885,0.4495126,53879.0,53878.0,0.1225069]
[1725682050888,0.44951643,53879.0,53878.0,0.1225069]
[1725682052789,0.38357759,53879.0,53878.0,0.1225069]
[1725682053488,0.45782264,53879.0,53878.0,0.1225069]
[1725682053685,0.38357759,53879.0,53878.0,0.21517366]
[1725682053987,0.52959775,53879.0,53878.0,0.0286819]
[1725682054187,0.54259775,53879.0,53878.0,0.0296819]
[1725682054388,0.55059775,53879.0,53878.0,0.0296819]
[1725682054591,0.53759775,53879.0,53878.0,0.0286819]
[1725682054789,0.55059775,53879.0,53878.0,0.0296819]
[1725682055494,0.85480669,53879.0,53878.0,0.002]
[1725682055696,0.69926731,53879.0,53878.0,0.002]
[1725682056083,0.69956731,53879.0,53878.0,0.002]
[1725682056281,0.69925731,53879.0,53878.0,0.002]
[1725682056492,1.30445731,53879.0,53878.0,0.002]
[1725682057798,0.74765731,53879.0,53878.0,0.002]
[1725682059187,1.90445731,53879.0,53878.0,0.001]
[1725682059392,0.092851,53863.0,53862.0,0.05559783]
[1725682059596,0.26462611,53863.0,53862.0,0.05559783]
[1725682059907,0.26462611,53863.0,53859.0,0.05559783]
[1725682059908,1.62016392,53863.0,53859.0,0.05559783]
[1725682060101,0.092859,53858.0,53857.0,0.05559783]
[1725682060289,0.07418292,53859.0,53853.0,0.11989237]
[1725682060492,0.097,53857.0,53855.0,0.0555771]
[1725682060690,0.1,53857.0,53856.0,0.0555771]
[1725682060992,0.1,53857.0,53853.0,0.11989237]
[1725682060993,0.27998197,53856.0,53853.0,0.11989237]
[1725682061195,0.03010228,53855.0,53853.0,0.11989237]
[1725682061391,0.11108416,53854.0,53853.0,0.11989237]
[1725682061692,0.38968388,53854.0,53853.0,0.11989237]
[1725682061900,0.12404416,53854.0,53853.0,0.11989237]
[1725682062093,0.40281193,53854.0,53853.0,0.12089237]
[1725682062395,0.29272777,53854.0,53853.0,0.12089237]
[1725682063695,0.31572777,53854.0,53853.0,0.11989237]
[1725682064499,0.4071686,53854.0,53853.0,0.11989237]
[1725682064694,0.30372777,53854.0,53853.0,0.11989237]
[1725682064896,0.31372777,53854.0,53853.0,0.11989237]
[1725682065284,0.31572777,53854.0,53853.0,0.11989237]
[1725682065804,0.50100695,53854.0,53853.0,0.11989237]
[1725682065998,0.40859377,53854.0,53853.0,0.11989237]
[1725682066200,0.50859377,53854.0,53853.0,0.11989237]
[1725682066497,0.092882,53845.0,53843.0,0.092885]
[1725682066907,0.37236956,53845.0,53843.0,0.092885]
[1725682067199,0.38532956,53845.0,53844.0,0.07632233]
[1725682067605,0.38532956,53845.0,53844.0,0.04632233]
[1725682067906,0.38532956,53845.0,53844.0,0.09552233]
[1725682068493,0.38532956,53845.0,53844.0,0.08252233]
[1725682076799,0.38532956,53845.0,53844.0,0.17540633]
[1725682084524,0.38532956,53845.0,53844.0,0.23098343]
[1725682085324,0.38532956,53845.0,53844.0,0.17540633]
[1725682087924,0.29244756,53845.0,53844.0,0.27540633]
[1725682088328,0.29244756,53845.0,53844.0,0.41690568]
[1725682095436,0.29244756,53845.0,53844.0,0.52832325]
[1725682095635,0.07386392,53852.0,53851.0,0.092871]
[1725682095836,0.07386392,53855.0,53851.0,0.14149094]
[1725682096032,0.07386392,53856.0,53854.0,0.09284768]
[1725682096331,0.092863,53856.0,53855.0,0.08364]
[1725682096529,0.105823,53856.0,53855.0,0.08364]
[1725682096841,0.38361361,53856.0,53855.0,0.08364]
[1725682098644,0.45778968,53856.0,53855.0,0.08364]
[1725682099228,0.45777999,53856.0,53855.0,0.08364]
[1725682101238,0.38361361,53856.0,53855.0,0.08364]
[1725682103836,0.45777999,53856.0,53855.0,0.08364]
[1725682104033,0.45777999,53856.0,53855.0,0.0486]
[1725682104435,0.38361361,53856.0,53855.0,0.0486]
[1725682104642,0.38361361,53856.0,53853.0,0.12106317]
[1725682104835,0.45774856,53856.0,53853.0,0.12106317]
[1725682105037,0.07413495,53854.0,53853.0,0.12106317]
[1725682105349,0.27895336,53854.0,53853.0,0.12106317]
[1725682105644,0.35308831,53855.0,53853.0,0.12106317]
[1725682105938,0.01296,53855.0,53853.0,0.12106317]
[1725682106340,0.27890265,53854.0,53853.0,0.12106317]
[1725682106809,0.29186265,53854.0,53853.0,0.12106317]
[1725682111147,0.34750387,53854.0,53853.0,0.12106317]
[1725682111342,0.29186265,53854.0,53853.0,0.12106317]
[1725682111546,0.34750682,53854.0,53853.0,0.12106317]
[1725682111754,0.29186265,53854.0,53853.0,0.12106317]
[1725682111941,0.34750995,53854.0,53853.0,0.12106317]
[1725682112141,0.29186265,53854.0,53853.0,0.12106317]
[1725682117051,0.38472865,53854.0,53853.0,0.12106317]
[1725682117646,0.44039724,53854.0,53853.0,0.12106317]
[1725682118046,0.29186265,53854.0,53853.0,0.12106317]
[1725682118242,0.34753124,53854.0,53853.0,0.12106317]
[1725682118751,0.29186265,53854.0,53853.0,0.35541603]
[1725682118954,0.01296,53854.0,53853.0,0.52761591]
[1725682119166,0.14852353,53862.0,53859.0,0.092856]
[1725682119451,0.43991025,53862.0,53861.0,0.07418577]
[1725682119843,0.16148353,53862.0,53861.0,0.07418554]
[1725682120148,0.38418859,53862.0,53860.0,0.092855]
[1725682120344,0.38418859,53862.0,53861.0,0.16702224]
[1725682120543,0.38418859,53862.0,53861.0,0.16702369]
[1725682120955,0.38418859,53862.0,53861.0,0.092854]
[1725682121156,0.38418859,53862.0,53861.0,0.16702312]
[1725682123262,0.29133559,53862.0,53861.0,0.16702312]
[1725682123958,0.29133559,53862.0,53861.0,0.16700422]
[1725682125347,0.29133559,53862.0,53861.0,0.092854]
[1725682126158,0.29133559,53862.0,53861.0,0.16699962]
[1725682127853,0.43358859,53862.0,53861.0,0.07414562]
[1725682128965,0.43358859,53862.0,53860.0,0.16700162]
[1725682129560,0.38418859,53862.0,53860.0,0.16700162]
[1725682130153,0.092854,53861.0,53860.0,0.16700162]
[1725682130355,0.105814,53861.0,53860.0,0.16700162]
[1725682130658,0.38499561,53861.0,53860.0,0.16700162]
[1725682131858,0.38499561,53861.0,53860.0,0.092856]
[1725682135965,0.45913056,53861.0,53860.0,0.092856]
[1725682138264,0.38499561,53861.0,53860.0,0.092856]
[1725682141871,0.38499561,53861.0,53860.0,0.14845115]
[1725682142971,0.38499561,53861.0,53860.0,0.092856]
[1725682145473,0.38499561,53861.0,53860.0,0.16705777]
[1725682145474,0.45918734,53861.0,53860.0,0.16705777]
[1725682146372,0.45918734,53861.0,53860.0,0.16706971]
[1725682147278,0.38499561,53861.0,53860.0,0.092856]
[1725682150880,0.38499561,53861.0,53860.0,0.18558839]
[1725682151175,0.38499561,53861.0,53860.0,0.23432507]
[1725682151176,0.44069205,53861.0,53860.0,0.23432507]
[1725682155977,0.38499561,53861.0,53860.0,0.23432507]
[1725682157171,0.44069205,53861.0,53860.0,0.23432507]
[1725682158274,0.44069205,53861.0,53860.0,0.23432127]
[1725682159077,0.38499561,53861.0,53860.0,0.23432127]
[1725682159875,0.34783805,53861.0,53860.0,0.42717727]
[1725682160191,0.11076993,53874.0,53867.0,0.092844]
[1725682160192,0.05569644,53868.0,53867.0,0.092844]
[1725682160484,0.05569644,53869.0,53868.0,0.092842]
[1725682160685,0.14853544,53870.0,53868.0,0.079882]
[1725682160876,0.27692081,53869.0,53868.0,0.079882]
[1725682163393,0.28988081,53869.0,53868.0,0.079882]
[1725682165689,0.28988081,53869.0,53868.0,0.10721772]
[1725682165887,0.38272081,53869.0,53868.0,0.02733572]
[1725682166076,0.38272081,53869.0,53867.0,0.092844]
[1725682166390,0.05560386,53868.0,53867.0,0.092844]
[1725682166788,0.33463731,53868.0,53867.0,0.092844]
[1725682166990,0.34759731,53868.0,53867.0,0.092844]
[1725682169087,0.29199345,53868.0,53867.0,0.092844]
[1725682171583,0.29199345,53868.0,53867.0,0.16688667]
[1725682172094,0.29199345,53868.0,53867.0,0.092844]
[1725682172293,0.29199345,53868.0,53867.0,0.16688667]
[1725682172490,0.29199345,53868.0,53867.0,0.092844]
[1725682172697,0.29199345,53868.0,53867.0,0.16688667]
[1725682173282,0.29199345,53868.0,53867.0,0.192844]
[1725682173595,0.29199345,53868.0,53867.0,0.26688667]
[1725682174310,0.29199345,53868.0,53867.0,0.192844]
[1725682177294,0.29199345,53868.0,53867.0,0.28551252]
[1725682177493,0.29199345,53868.0,53867.0,0.192844]
[1725682177904,0.29199345,53868.0,53867.0,0.28551252]
[1725682178103,0.29199345,53868.0,53867.0,0.192844]
[1725682179599,0.01296,53868.0,53867.0,0.42713141]
[1725682179799,0.14842115,53877.0,53867.0,0.33428741]
[1725682180101,0.14842115,53877.0,53876.0,0.14835965]
[1725682180299,0.092829,53876.0,53874.0,0.08354437]
[1725682180600,0.19283,53875.0,53873.0,0.1668749]
[1725682180800,0.24844002,53875.0,53873.0,0.092833]
[1725682181003,0.27809577,53874.0,53873.0,0.092833]
[1725682181608,0.29105577,53874.0,53873.0,0.092833]
[1725682183006,0.29105577,53874.0,53873.0,0.12021452]
[1725682185420,0.34666579,53874.0,53873.0,0.12021452]
[1725682187311,0.29105577,53874.0,53873.0,0.19425642]
[1725682188210,0.32114797,53874.0,53873.0,0.12021452]
[1725682191220,0.38380828,53874.0,53873.0,0.12021452]
[1725682191416,0.29105577,53874.0,53873.0,0.12021452]
[1725682191608,0.38380837,53874.0,53873.0,0.12021452]
[1725682191917,0.29105577,53874.0,53873.0,0.12021452]
[1725682192320,0.32114742,53874.0,53873.0,0.12021452]
[1725682195318,0.34670548,53874.0,53873.0,0.12021452]
[1725682197214,0.29105577,53874.0,53873.0,0.12021452]
[1725682198016,0.34670458,53874.0,53873.0,0.12021452]
[1725682198328,0.29105577,53874.0,53873.0,0.12021452]
[1725682199123,0.34670503,53874.0,53873.0,0.12021452]
[1725682199321,0.34670624,53874.0,53873.0,0.12021452]
[1725682199825,0.29105577,53874.0,53873.0,0.12021452]
[1725682201427,0.34671041,53874.0,53873.0,0.12021452]
[1725682201932,0.34671041,53874.0,53873.0,0.16971452]
[1725682203222,0.29105577,53874.0,53873.0,0.40370247]
[1725682203426,0.29105577,53874.0,53873.0,0.16971452]
[1725682203934,0.36528256,53874.0,53873.0,0.16971452]
[1725682204319,0.29105577,53874.0,53873.0,0.16971452]
[1725682210337,0.29105577,53874.0,53873.0,0.31113892]
[1725682214125,0.29105577,53874.0,53873.0,0.40397292]
[1725682216435,0.29105577,53874.0,53873.0,0.51517514]
[1725682217134,0.29105577,53874.0,53873.0,0.40397292]
[1725682219041,0.29105577,53874.0,53873.0,0.31113892]
[1725682220833,0.29105577,53874.0,53873.0,0.26163892]
[1725682221235,0.29105577,53874.0,53873.0,0.21289915]
[1725682222243,0.29105577,53874.0,53873.0,0.12021452]
[1725682222444,0.29105577,53874.0,53873.0,0.21289915]
[1725682225337,0.34671111,53874.0,53873.0,0.12021452]
[1725682225634,0.29105577,53874.0,53873.0,0.12021452]
[1725682225840,0.34671205,53874.0,53873.0,0.12021452]
[1725682226239,0.29105577,53874.0,53873.0,0.12021452]
[1725682226547,0.34671369,53874.0,53873.0,0.12021452]
[1725682227134,0.53954604,53874.0,53873.0,0.02738152]
[1725682227338,0.53954604,53874.0,53862.0,0.092852]
[1725682227339,0.092834,53873.0,53872.0,0.092834]
[1725682227533,0.16705099,53873.0,53872.0,0.092834]
[1725682227742,0.3725804,53873.0,53872.0,0.092834]
[1725682227937,0.45976002,53873.0,53872.0,0.092834]
[1725682228738,0.3855404,53873.0,53872.0,0.092834]
[1725682229239,0.45974036,53873.0,53872.0,0.092834]
[1725682230645,0.45974036,53873.0,53872.0,0.14844774]
[1725682231248,0.45974036,53873.0,53872.0,0.092834]
[1725682231249,0.3855404,53873.0,53872.0,0.092834]
[1725682232549,0.3855404,53873.0,53872.0,0.192834]
[1725682233348,0.44117019,53873.0,53872.0,0.26700502]
[1725682233553,0.44117019,53873.0,53872.0,0.19477084]
[1725682233847,0.3855404,53873.0,53872.0,0.12059982]
[1725682243856,0.2927064,53873.0,53872.0,0.16719982]
[1725682244252,0.2927064,53873.0,53872.0,0.25988445]
[1725682245264,0.2927064,53873.0,53872.0,0.40132032]
[1725682247049,0.2927064,53873.0,53872.0,0.40132018]
[1725682247661,0.2927064,53873.0,53872.0,0.30863555]
[1725682249765,0.24627441,53873.0,53872.0,0.30863555]
[1725682250060,0.24627441,53873.0,53872.0,0.40863555]
[1725682251362,0.24627441,53873.0,53872.0,0.40863138]
[1725682259671,0.24627441,53873.0,53872.0,0.5198336]
[1725682261079,0.24627441,53873.0,53872.0,0.51982473]
[1725682261472,0.23331441,53873.0,53872.0,0.51982473]
[1725682261873,0.24626441,53873.0,53872.0,0.51982473]
[1725682262266,0.24626441,53873.0,53872.0,0.40862251]
[1725682263577,0.24626441,53873.0,53872.0,0.50145751]
[1725682263770,0.05562979,53880.0,53873.0,0.092834]
[1725682263969,0.05562979,53880.0,53879.0,0.18553829]
[1725682263970,0.01295,53880.0,53879.0,0.18553829]
[1725682264175,0.29284665,53880.0,53879.0,0.23424569]
[1725682264367,0.01295,53880.0,53879.0,0.23424569]
[1725682264873,0.2924473,53880.0,53879.0,0.23424569]
[1725682267473,0.2924473,53880.0,53879.0,0.326901]
[1725682267975,0.2924473,53880.0,53879.0,0.18547831]
[1725682268976,0.2924473,53880.0,53879.0,0.2127018]
[1725682272282,0.2924473,53880.0,53879.0,0.12004649]
[1725682273877,0.2924473,53880.0,53879.0,0.36145992]
[1725682274175,0.2924473,53880.0,53879.0,0.47271827]
[1725682274776,0.2924473,53880.0,53879.0,0.36145992]
[1725682275165,0.2924473,53880.0,53879.0,0.47264156]
[1725682275878,0.2924473,53880.0,53879.0,0.36145992]
[1725682276275,0.2924473,53880.0,53879.0,0.40965992]
[1725682279284,0.2924473,53880.0,53879.0,0.52084156]
[1725682282181,0.2924473,53880.0,53879.0,0.40965992]
[1725682282384,0.2924473,53880.0,53879.0,0.26145992]
[1725682285683,0.2924473,53880.0,53879.0,0.35410123]
[1725682287293,0.2924473,53880.0,53879.0,0.26146273]
[1725682287491,0.2924473,53880.0,53879.0,0.16863973]
[1725682287692,0.2924473,53880.0,53879.0,0.26130271]
[1725682287693,0.3852693,53880.0,53879.0,0.26130271]
[1725682287986,0.3852693,53880.0,53879.0,0.26130321]
[1725682288189,0.3852693,53880.0,53879.0,0.35412621]
[1725682288994,0.3852693,53880.0,53879.0,0.21270997]
[1725682289192,0.3852693,53880.0,53879.0,0.35412783]
[1725682291691,0.3852693,53880.0,53879.0,0.26146435]
[1725682296695,0.2924473,53880.0,53879.0,0.26146435]
[1725682296898,0.24602115,53880.0,53879.0,0.26146435]
[1725682297605,0.25897115,53880.0,53879.0,0.26146435]
[1725682298304,0.26152115,53880.0,53879.0,0.26146435]
[1725682298802,0.26152115,53880.0,53879.0,0.37264599]
[1725682299108,0.26152115,53880.0,53879.0,0.26146435]
[1725682299398,0.26152115,53880.0,53879.0,0.62639774]
[1725682299705,0.1335493,53880.0,53879.0,0.58057474]
[1725682300207,0.11693332,53880.0,53879.0,0.48057474]
[1725682300507,0.11693332,53880.0,53879.0,0.58057474]
[1725682300997,0.09502331,53880.0,53879.0,0.58057474]
[1725682302016,0.09502331,53880.0,53879.0,0.48057474]
[1725682302497,0.09502331,53880.0,53879.0,0.58057474]
[1725682304203,0.09502331,53880.0,53879.0,0.48057474]
[1725682304507,0.09502331,53880.0,53879.0,0.58057474]
[1725682304808,0.03932088,53880.0,53879.0,0.58057474]
[1725682306705,0.03932088,53880.0,53879.0,0.40846435]
[1725682306908,0.03932088,53880.0,53879.0,0.58057221]
[1725682307295,0.03932088,53880.0,53879.0,0.40846435]
[1725682310400,0.03932088,53880.0,53879.0,0.51959287]
[1725682310802,0.03932088,53880.0,53879.0,0.51957353]
[1725682311399,0.03932088,53880.0,53879.0,0.5195735]
[1725682311805,0.03932088,53880.0,53879.0,0.37817501]
[1725682312010,0.03932088,53880.0,53879.0,0.51957353]
[1725682312208,0.03932088,53880.0,53879.0,0.40844501]
[1725682312511,0.03932088,53880.0,53879.0,0.51957353]
[1725682313015,0.03932088,53880.0,53879.0,0.51956092]
[1725682314708,0.03932088,53880.0,53879.0,0.41956092]
[1725682314911,0.03932088,53880.0,53879.0,0.30844501]
[1725682315511,0.03932088,53880.0,53879.0,0.26125981]
[1725682315512,0.13932088,53880.0,53879.0,0.26125981]
[1725682315708,0.13932088,53880.0,53879.0,0.02722349]
[1725682315903,0.13932088,53880.0,53878.0,0.09262379]
[1725682316304,0.092823,53879.0,53878.0,0.09262379]
[1725682316504,0.105773,53879.0,53877.0,0.09262379]
[1725682316705,0.38340446,53879.0,53877.0,0.09262379]
[1725682317113,0.38340446,53879.0,53875.0,0.12025871]
[1725682317114,0.38340446,53879.0,53878.0,0.14141804]
[1725682318005,0.38340446,53879.0,53877.0,0.09263156]
[1725682318200,0.38340446,53879.0,53877.0,0.18545756]
[1725682319909,0.38340446,53879.0,53872.0,0.07433947]
[1725682319910,0.29058146,53879.0,53878.0,0.23424085]
[1725682324314,0.29058146,53879.0,53878.0,0.23423758]
[1725682324617,0.29058146,53879.0,53878.0,0.26178637]
[1725682334416,0.29058146,53879.0,53878.0,0.37290228]
[1725682335832,0.29058146,53879.0,53878.0,0.26178637]
[1725682337328,0.29058146,53879.0,53878.0,0.37290228]
[1725682338835,0.29058146,53879.0,53878.0,0.47290228]
[1725682339033,0.29058146,53879.0,53878.0,0.47305114]
[1725682339332,0.29058146,53879.0,53878.0,0.36178353]
[1725682340034,0.29058146,53879.0,53878.0,0.53390307]
[1725682340331,0.29058146,53879.0,53878.0,0.47305969]
[1725682340718,0.29058146,53879.0,53878.0,0.36178353]
[1725682341127,0.29058146,53879.0,53878.0,0.53389335]
[1725682341829,0.24415948,53879.0,53878.0,0.62671835]
[1725682342033,0.17916871,53879.0,53878.0,0.62671835]
[1725682342333,0.19211871,53879.0,53878.0,0.62671835]
[1725682342533,0.18101871,53879.0,53878.0,0.62671835]
[1725682343936,0.18101871,53879.0,53878.0,0.62670646]
[1725682347336,0.19211871,53879.0,53878.0,0.45459871]
[1725682348629,0.19211871,53879.0,53878.0,0.62670717]
[1725682348826,0.19466871,53879.0,53878.0,0.48530725]
[1725682349028,0.19466871,53879.0,53878.0,0.62670775]
[1725682352440,0.19466871,53879.0,53878.0,0.45459929]
[1725682353636,0.19466871,53879.0,53878.0,0.62670775]
[1725682354044,0.19466871,53879.0,53878.0,0.62670781]
[1725682355739,0.19466871,53879.0,53878.0,0.53388281]
[1725682360048,0.19466871,53879.0,53878.0,0.43388281]
[1725682363140,0.28749171,53879.0,53878.0,0.16894932]
[1725682363837,0.28749171,53879.0,53878.0,0.16896982]
[1725682364034,0.28749171,53879.0,53878.0,0.14142103]
[1725682364239,0.28749171,53879.0,53878.0,0.23416724]
[1725682364441,0.185654,53877.0,53876.0,0.07421074]
[1725682364646,0.185654,53877.0,53873.0,0.07421074]
[1725682364647,0.09283,53875.0,53873.0,0.07421074]
[1725682364943,0.092835,53872.0,53871.0,0.07421074]
[1725682365144,0.192835,53872.0,53871.0,0.07421074]
[1725682365355,0.092839,53870.0,53869.0,0.07421074]
[1725682365644,0.192839,53870.0,53869.0,0.07421074]
[1725682365843,0.48321328,53870.0,53869.0,0.07421074]
[1725682366048,0.57605328,53870.0,53869.0,0.07415323]
[1725682366242,0.38321328,53870.0,53869.0,0.07415323]
[1725682366442,0.48321328,53870.0,53869.0,0.07415323]
[1725682367248,0.48321328,53870.0,53869.0,0.16691604]
[1725682367450,0.48321328,53870.0,53869.0,0.19413823]
[1725682368245,0.48321328,53870.0,53869.0,0.12006219]
[1725682372259,0.48321328,53870.0,53869.0,0.17555394]
[1725682372858,0.48321328,53870.0,53869.0,0.12006219]
[1725682375054,0.48321328,53870.0,53869.0,0.17554229]
[1725682380772,0.48321328,53870.0,53869.0,0.12006219]
[1725682381469,0.47026328,53870.0,53869.0,0.12006219]
[1725682381771,0.48321328,53870.0,53869.0,0.12006219]
[1725682386363,0.48321328,53870.0,53869.0,0.17554229]
[1725682388461,0.48321328,53870.0,53869.0,0.12006219]
[1725682390371,0.48321328,53870.0,53869.0,0.19413823]
[1725682391481,0.48321328,53870.0,53869.0,0.12006219]
[1725682392572,0.48321328,53870.0,53869.0,0.02722219]
[1725682392772,0.48321328,53870.0,53869.0,0.07418423]
[1725682393271,0.48321328,53870.0,53869.0,0.09284]
[1725682394279,0.48321328,53870.0,53869.0,0.32703498]
[1725682396978,0.48321328,53870.0,53869.0,0.32703501]
[1725682399885,0.38321328,53870.0,53869.0,0.32703501]
[1725682400190,0.48321328,53870.0,53869.0,0.2342888]
[1725682400887,0.48576328,53870.0,53869.0,0.2342888]
[1725682402088,0.48576328,53870.0,53869.0,0.23428756]
[1725682411697,0.48576328,53870.0,53869.0,0.2342836]
[1725682411894,0.48576328,53870.0,53869.0,0.09284]
[1725682412098,0.48576328,53870.0,53869.0,0.2342836]
[1725682419405,0.48576328,53870.0,53869.0,0.1414436]
[1725682421205,0.48576328,53870.0,53869.0,0.23427918]
[1725682421710,0.48576328,53870.0,53869.0,0.09283558]
[1725682432911,0.48576328,53870.0,53869.0,0.23428447]
[1725682433515,0.48576328,53870.0,53869.0,0.09283558]
[1725682434212,0.48576328,53870.0,53869.0,0.23428447]
[1725682436916,0.57860328,53870.0,53869.0,0.09283558]
[1725682437816,0.57605328,53870.0,53869.0,0.09283558]
[1725682439219,0.09284,53869.0,53868.0,0.13993558]
[1725682439419,0.10579,53869.0,53868.0,0.28138447]
[1725682439624,0.38337456,53869.0,53868.0,0.28138447]
[1725682440915,0.38337456,53869.0,53868.0,0.13993558]
[1725682441117,0.38337456,53869.0,53868.0,0.28138447]
[1725682441504,0.47621456,53869.0,53868.0,0.28138447]
[1725682445017,0.47621456,53869.0,53868.0,0.18854889]
[1725682452027,0.47876456,53869.0,53868.0,0.18854889]
[1725682452931,1.82828381,53869.0,53864.0,0.09288318]
[1725682453121,0.092847,53865.0,53864.0,0.14861587]
[1725682453428,0.092849,53864.0,53863.0,0.05573269]
[1725682453732,0.092854,53861.0,53860.0,0.048]
[1725682453930,0.26701585,53861.0,53860.0,0.048]
[1725682454130,0.48503139,53861.0,53860.0,0.12230966]
[1725682454328,0.48448139,53861.0,53860.0,0.12230966]
[1725682455530,0.54007034,53861.0,53860.0,0.048]
[1725682456423,0.48448139,53861.0,53860.0,0.048]
[1725682457222,0.54007034,53861.0,53860.0,0.048]
[1725682457429,0.48448139,53861.0,53860.0,0.048]
[1725682460639,0.48448139,53861.0,53860.0,0.10359928]
[1725682464233,0.48448139,53861.0,53860.0,0.048]
[1725682472344,0.48448139,53861.0,53860.0,0.10359056]
[1725682474152,0.48448139,53861.0,53860.0,0.048]
[1725682479238,0.48448139,53861.0,53860.0,0.12230966]
[1725682480543,0.29162739,53861.0,53860.0,0.148]
[1725682480843,0.05560587,53870.0,53868.0,0.092842]
[1725682481053,0.14844287,53871.0,53868.0,0.10203416]
[1725682481249,0.29298487,53869.0,53868.0,0.10203416]
[1725682481454,0.29298487,53869.0,53868.0,0.33527648]
[1725682481660,0.29298487,53869.0,53868.0,0.47672039]
[1725682482053,0.29298487,53869.0,53868.0,1.54089807]
[1725682482357,0.05560587,53879.0,53878.0,0.092825]
[1725682482652,0.01295,53879.0,53878.0,0.092825]
[1725682482854,0.29172633,53879.0,53878.0,0.188825]
[1725682483552,0.29172633,53879.0,53878.0,0.24438215]
[1725682484456,0.29172633,53879.0,53878.0,0.188825]
[1725682484850,0.29172633,53879.0,53878.0,0.24438215]
[1725682485359,0.29172633,53879.0,53878.0,0.188825]
[1725682485662,0.29172633,53879.0,53878.0,0.24432814]
[1725682486554,0.29172633,53879.0,53878.0,0.188825]
[1725682487257,0.29172633,53879.0,53878.0,0.24432814]
[1725682487457,0.29172633,53879.0,53878.0,0.188825]
[1725682488353,0.36588818,53879.0,53878.0,0.188825]
[1725682488548,0.29172633,53879.0,53878.0,0.188825]
[1725682492362,0.29172633,53879.0,53878.0,0.21689961]
[1725682495354,0.34711872,53879.0,53878.0,0.21689961]
[1725682496456,0.29172633,53879.0,53878.0,0.21689961]
[1725682500966,0.29172633,53879.0,53878.0,0.40972461]
[1725682501156,0.29172633,53879.0,53878.0,0.37240275]
[1725682502156,0.29172633,53879.0,53878.0,0.31689961]
[1725682503259,0.29427633,53879.0,53878.0,0.21689961]
[1725682503460,0.29427633,53879.0,53878.0,0.12089961]
[1725682503654,0.29427633,53879.0,53878.0,0.02807461]
[1725682503655,0.44249172,53879.0,53878.0,0.02807461]
[1725682503853,0.44249172,53879.0,53876.0,0.092827]
[1725682504054,0.1,53877.0,53876.0,0.092827]
[1725682504456,0.37810828,53877.0,53876.0,0.092827]
[1725682504658,0.39105828,53877.0,53876.0,0.092827]
[1725682505970,0.39105828,53877.0,53876.0,0.12055077]
[1725682506667,0.44645067,53877.0,53876.0,0.12055077]
[1725682507461,0.39105828,53877.0,53876.0,0.12055077]
[1725682509468,0.46522013,53877.0,53876.0,0.12055077]
[1725682510469,0.39105828,53877.0,53876.0,0.17597893]
[1725682511368,0.39105828,53877.0,53876.0,0.2132062]
[1725682511558,0.44668675,53877.0,53876.0,0.2619718]
[1725682513069,0.44668675,53877.0,53876.0,0.26197158]
[1725682514772,0.34668675,53877.0,53876.0,0.26197158]
[1725682514974,0.44668675,53877.0,53876.0,0.26197158]
[1725682515475,0.39105828,53877.0,53876.0,0.26197158]
[1725682517966,0.39105828,53877.0,53876.0,0.26197127]
[1725682518670,0.39105828,53877.0,53876.0,0.12055077]
[1725682525284,0.48388528,53877.0,53876.0,0.12055077]
[1725682526277,0.48388528,53877.0,53876.0,0.19477508]
[1725682526478,0.55808829,53877.0,53876.0,0.19477508]
[1725682526693,0.48388528,53877.0,53876.0,0.19476738]
[1725682526874,0.48388528,53877.0,53876.0,0.12055077]
[1725682527080,0.53953406,53877.0,53876.0,0.12055077]
[1725682527276,0.53953442,53877.0,53876.0,0.12055077]
[1725682527787,0.48388528,53877.0,53876.0,0.21331225]
[1725682529283,0.53953442,53877.0,53876.0,0.12055077]
[1725682530386,0.53953442,53877.0,53876.0,0.21331225]
[1725682531194,0.53953442,53877.0,53876.0,0.12055077]
[1725682531400,0.53953442,53877.0,53876.0,0.21331225]
[1725682531895,0.53953442,53877.0,53876.0,0.35473556]
[1725682532282,0.48388528,53877.0,53876.0,0.21331225]
[1725682532488,0.48388528,53877.0,53876.0,0.3547357]
[1725682534492,0.48388528,53877.0,53876.0,0.21331225]
[1725682534699,0.39105828,53877.0,53876.0,0.21331225]
[1725682534887,0.39105828,53877.0,53876.0,0.35473556]
[1725682535686,0.29105828,53877.0,53876.0,0.35473556]
[1725682536501,0.29105828,53877.0,53876.0,0.26197408]
[1725682537093,0.29105828,53877.0,53876.0,0.35477912]
[1725682537294,0.29105828,53877.0,53876.0,0.35477961]
[1725682538192,0.29105828,53877.0,53876.0,0.26197408]
[1725682539292,0.29105828,53877.0,53876.0,0.35478027]
[1725682539596,0.29105828,53877.0,53876.0,0.26197408]
[1725682539799,0.29105828,53877.0,53876.0,0.3547807]
[1725682540900,0.34672811,53877.0,53876.0,0.26197408]
[1725682542601,0.29105828,53877.0,53876.0,0.26197408]
[1725682543787,0.34673088,53877.0,53876.0,0.26197408]
[1725682543994,0.29105828,53877.0,53876.0,0.26197408]
[1725682545295,0.34672825,53877.0,53876.0,0.26197408]
[1725682545495,0.29105828,53877.0,53876.0,0.26197408]
[1725682545696,0.34672652,53877.0,53876.0,0.26197408]
[1725682546393,0.29105828,53877.0,53876.0,0.26197408]
[1725682546802,0.34672765,53877.0,53876.0,0.26197408]
[1725682547195,0.29105828,53877.0,53876.0,0.26197408]
[1725682551100,0.29505828,53877.0,53876.0,0.37316059]
[1725682551494,0.29505828,53877.0,53876.0,0.26197408]
[1725682551707,0.29505828,53877.0,53876.0,0.37316059]
[1725682552097,0.29505828,53877.0,53876.0,0.37314862]
[1725682552298,0.29760828,53877.0,53876.0,0.37314862]
[1725682552907,0.29760828,53877.0,53876.0,0.37314876]